[Event "Live Chess"]
[Site "Chess.com"]
[Date "2024.06.02"]
[Round "-"]
[White "LL220284LL"]
[Black "AndrewBak1"]
[Result "1-0"]
[WhiteElo "2483"]
[BlackElo "1874"]
[TimeControl "300"]
[EndTime "8:34:03 PDT"]
[Termination "LL220284LL won by checkmate"]

1. Nf3 {[%clk 0:04:58]} 1... d5 {[%clk 0:04:56.9]} 2. b3 {[%clk 0:04:57.2]} 2...
Nf6 {[%clk 0:04:55.6]} 3. Bb2 {[%clk 0:04:56.6]} 3... g6 {[%clk 0:04:55.2]} 4.
e3 {[%clk 0:04:56.3]} 4... Bg7 {[%clk 0:04:54.4]} 5. Be2 {[%clk 0:04:55.7]} 5...
O-O {[%clk 0:04:53.5]} 6. O-O {[%clk 0:04:55.3]} 6... Ne4 {[%clk 0:04:51.3]} 7.
Bxg7 {[%clk 0:04:55.2]} 7... Kxg7 {[%clk 0:04:51]} 8. d3 {[%clk 0:04:53.3]} 8...
Nf6 {[%clk 0:04:49.8]} 9. c4 {[%clk 0:04:52.4]} 9... c6 {[%clk 0:04:48.5]} 10.
Nc3 {[%clk 0:04:50.9]} 10... Nbd7 {[%clk 0:04:44.4]} 11. Rc1 {[%clk 0:04:49.3]}
11... Nb6 {[%clk 0:04:42.7]} 12. d4 {[%clk 0:04:46.8]} 12... Bf5 {[%clk
0:04:37.5]} 13. Ne5 {[%clk 0:04:45.7]} 13... Ne4 {[%clk 0:04:33.9]} 14. c5
{[%clk 0:04:38.1]} 14... Nd7 {[%clk 0:04:31.3]} 15. Nxd7 {[%clk 0:04:36.8]}
15... Qxd7 {[%clk 0:04:29.2]} 16. b4 {[%clk 0:04:36.4]} 16... a5 {[%clk
0:04:16.5]} 17. b5 {[%clk 0:04:29.1]} 17... Nxc3 {[%clk 0:04:11]} 18. Rxc3
{[%clk 0:04:26.3]} 18... cxb5 {[%clk 0:04:10.6]} 19. Qb3 {[%clk 0:04:21.7]}
19... b4 {[%clk 0:04:08.3]} 20. Rcc1 {[%clk 0:04:20.7]} 20... Be6 {[%clk
0:03:43.3]} 21. a3 {[%clk 0:04:18.2]} 21... bxa3 {[%clk 0:03:39.1]} 22. Qxa3
{[%clk 0:04:18.1]} 22... Rfb8 {[%clk 0:03:35.2]} 23. Rb1 {[%clk 0:04:16.7]}
23... Qc6 {[%clk 0:03:28.4]} 24. Rb6 {[%clk 0:04:15.4]} 24... Qc7 {[%clk
0:03:24.6]} 25. Rfb1 {[%clk 0:04:14.8]} 25... Bc8 {[%clk 0:03:15.8]} 26. R1b5
{[%clk 0:04:12.4]} 26... e5 {[%clk 0:02:55]} 27. Rxa5 {[%clk 0:04:09.3]} 27...
Rxa5 {[%clk 0:02:52.9]} 28. Qxa5 {[%clk 0:04:09.2]} 28... Qe7 {[%clk 0:02:47.5]}
29. Qa7 {[%clk 0:04:02.7]} 29... Qc7 {[%clk 0:02:40]} 30. h3 {[%clk 0:03:56.8]}
30... exd4 {[%clk 0:02:36.5]} 31. exd4 {[%clk 0:03:55.1]} 31... Qf4 {[%clk
0:02:32.4]} 32. c6 {[%clk 0:03:34.7]} 32... Qc1+ {[%clk 0:02:22.8]} 33. Bf1
{[%clk 0:03:33.3]} 33... Qf4 {[%clk 0:02:17.4]} 34. cxb7 {[%clk 0:03:30.3]}
34... Bf5 {[%clk 0:02:11.2]} 35. Rb4 {[%clk 0:03:23.2]} 35... g5 {[%clk
0:01:42.8]} 36. Qc5 {[%clk 0:03:18.3]} 36... Be4 {[%clk 0:01:29.7]} 37. Qc3
{[%clk 0:03:06.3]} 37... h5 {[%clk 0:01:19]} 38. Rb6 {[%clk 0:03:05]} 38... h4
{[%clk 0:01:09.9]} 39. Qc6 {[%clk 0:03:02.7]} 39... g4 {[%clk 0:00:59.6]} 40.
hxg4 {[%clk 0:02:57.5]} 40... h3 {[%clk 0:00:54.9]} 41. Qd6 {[%clk 0:02:41.3]}
41... h2+ {[%clk 0:00:45.3]} 42. Kh1 {[%clk 0:02:39.4]} 42... Qxf2 {[%clk
0:00:44.3]} 43. Qe5+ {[%clk 0:02:13.5]} 43... Kh7 {[%clk 0:00:33.1]} 44. Qh5+
{[%clk 0:02:06]} 44... Kg7 {[%clk 0:00:32.2]} 45. Qh6+ {[%clk 0:02:03.4]} 45...
Kg8 {[%clk 0:00:30.3]} 46. Kxh2 {[%clk 0:01:59.9]} 46... Qxf1 {[%clk 0:00:27.5]}
47. Qg5+ {[%clk 0:01:57.9]} 47... Kh7 {[%clk 0:00:26.2]} 48. Rh6# {[%clk
0:01:55.3]} 1-0

[Event "Live Chess"]
[Site "Chess.com"]
[Date "2024.06.02"]
[Round "-"]
[White "willc-h99"]
[Black "HoarseyHorsey"]
[Result "1-0"]
[WhiteElo "2559"]
[BlackElo "1576"]
[TimeControl "300"]
[EndTime "8:34:06 PDT"]
[Termination "willc-h99 won by resignation"]

1. c3 {[%clk 0:04:57.9]} 1... Nf6 {[%clk 0:04:58.5]} 2. Qc2 {[%clk 0:04:57.8]}
2... d5 {[%clk 0:04:57.8]} 3. d3 {[%clk 0:04:56.8]} 3... Bf5 {[%clk 0:04:56.8]}
4. h3 {[%clk 0:04:55.6]} 4... e6 {[%clk 0:04:56.2]} 5. g4 {[%clk 0:04:54.9]}
5... Bg6 {[%clk 0:04:55.7]} 6. Bg2 {[%clk 0:04:54.3]} 6... c5 {[%clk 0:04:54.9]}
7. Nd2 {[%clk 0:04:52.7]} 7... Nc6 {[%clk 0:04:54.3]} 8. Ngf3 {[%clk 0:04:49.7]}
8... Bd6 {[%clk 0:04:53.4]} 9. e4 {[%clk 0:04:48.3]} 9... dxe4 {[%clk
0:04:52.5]} 10. dxe4 {[%clk 0:04:47.2]} 10... Ne5 {[%clk 0:04:48.3]} 11. Nxe5
{[%clk 0:04:42.7]} 11... Bxe5 {[%clk 0:04:48.2]} 12. Nc4 {[%clk 0:04:41.3]}
12... Bc7 {[%clk 0:04:46.5]} 13. f4 {[%clk 0:04:39.7]} 13... b5 {[%clk
0:04:45.4]} 14. Na3 {[%clk 0:04:28.3]} 14... O-O {[%clk 0:04:38]} 15. O-O {[%clk
0:04:13.2]} 15... Bb6 {[%clk 0:04:33]} 16. f5 {[%clk 0:04:08.4]} 16... exf5
{[%clk 0:04:31.4]} 17. exf5 {[%clk 0:04:07]} 17... c4+ {[%clk 0:04:27.8]} 18.
Kh1 {[%clk 0:04:05.8]} 18... a6 {[%clk 0:04:26.8]} 19. fxg6 {[%clk 0:04:04.1]}
19... hxg6 {[%clk 0:04:25.6]} 20. Bg5 {[%clk 0:04:01]} 20... Qd6 {[%clk
0:04:21.4]} 21. Rad1 {[%clk 0:03:58.9]} 21... Qc5 {[%clk 0:04:19.4]} 22. Bxf6
{[%clk 0:03:54.6]} 22... gxf6 {[%clk 0:04:18.4]} 23. Rxf6 {[%clk 0:03:52.9]}
23... Rad8 {[%clk 0:04:13]} 24. Rdf1 {[%clk 0:03:52]} 24... Rd7 {[%clk
0:04:09.6]} 25. Qe2 {[%clk 0:03:32.4]} 25... Bc7 {[%clk 0:04:00.5]} 26. Nc2
{[%clk 0:03:28.2]} 26... Bg3 {[%clk 0:03:49.5]} 27. Nd4 {[%clk 0:03:22.3]} 27...
Bh4 {[%clk 0:03:47.6]} 28. Rxa6 {[%clk 0:03:17.8]} 28... Rxd4 {[%clk 0:03:41.7]}
29. cxd4 {[%clk 0:03:16.6]} 29... Qxd4 {[%clk 0:03:41.3]} 30. Qe4 {[%clk
0:03:13.4]} 30... Qd2 {[%clk 0:03:36.1]} 31. Ra8 {[%clk 0:03:08.1]} 31... Qxb2
{[%clk 0:03:31.1]} 32. Rxf8+ {[%clk 0:03:06.5]} 32... Kxf8 {[%clk 0:03:31]} 33.
Qxg6 {[%clk 0:03:04.7]} 1-0

[Event "Live Chess"]
[Site "Chess.com"]
[Date "2024.06.02"]
[Round "-"]
[White "CarmelJane"]
[Black "Rusty_Bridges"]
[Result "1-0"]
[WhiteElo "2044"]
[BlackElo "1479"]
[TimeControl "300"]
[EndTime "8:34:08 PDT"]
[Termination "CarmelJane won by checkmate"]

1. Nf3 {[%clk 0:04:57.7]} 1... d5 {[%clk 0:04:56.5]} 2. c4 {[%clk 0:04:54.9]}
2... dxc4 {[%clk 0:04:44.1]} 3. e3 {[%clk 0:04:53.7]} 3... Nf6 {[%clk
0:04:40.9]} 4. Bxc4 {[%clk 0:04:52.1]} 4... Nc6 {[%clk 0:04:40.1]} 5. O-O {[%clk
0:04:50.5]} 5... Bg4 {[%clk 0:04:37.7]} 6. h3 {[%clk 0:04:49]} 6... Bh5 {[%clk
0:04:35.9]} 7. Bb5 {[%clk 0:04:48.1]} 7... a6 {[%clk 0:04:31.4]} 8. Ba4 {[%clk
0:04:44.1]} 8... b5 {[%clk 0:04:29.7]} 9. Bb3 {[%clk 0:04:42.7]} 9... e6 {[%clk
0:04:26.7]} 10. Nc3 {[%clk 0:04:37.2]} 10... Ne5 {[%clk 0:04:19]} 11. d4 {[%clk
0:04:28.5]} 11... Nxf3+ {[%clk 0:04:14.3]} 12. gxf3 {[%clk 0:04:28.4]} 12... Be7
{[%clk 0:03:49]} 13. Ne4 {[%clk 0:04:22.6]} 13... Qd7 {[%clk 0:03:42.9]} 14. Ng3
{[%clk 0:04:21.8]} 14... Bg6 {[%clk 0:03:40.7]} 15. Bc2 {[%clk 0:04:10.1]} 15...
Bxc2 {[%clk 0:03:35.9]} 16. Qxc2 {[%clk 0:04:10]} 16... O-O {[%clk 0:03:29.7]}
17. a3 {[%clk 0:04:04]} 17... Nd5 {[%clk 0:03:22.8]} 18. e4 {[%clk 0:03:59.9]}
18... Nf6 {[%clk 0:03:18.7]} 19. Bf4 {[%clk 0:03:57.1]} 19... c6 {[%clk
0:03:13.9]} 20. Rac1 {[%clk 0:03:53.9]} 20... Rac8 {[%clk 0:03:10.6]} 21. Kh2
{[%clk 0:03:45.6]} 21... h6 {[%clk 0:03:08.2]} 22. Rg1 {[%clk 0:03:42.2]} 22...
Qxd4 {[%clk 0:02:50.7]} 23. Be3 {[%clk 0:03:21.2]} 23... Qd6 {[%clk 0:02:40.7]}
24. f4 {[%clk 0:03:18.6]} 24... Qd7 {[%clk 0:02:19.3]} 25. e5 {[%clk 0:03:12.1]}
25... Nd5 {[%clk 0:02:16.8]} 26. Nh5 {[%clk 0:03:09.1]} 26... g6 {[%clk
0:01:54.3]} 27. Rxg6+ {[%clk 0:03:02.3]} 27... fxg6 {[%clk 0:01:38.1]} 28. Qxg6+
{[%clk 0:03:00.3]} 28... Kh8 {[%clk 0:01:37]} 29. Qg7# {[%clk 0:02:59.7]} 1-0

[Event "Live Chess"]
[Site "Chess.com"]
[Date "2024.06.02"]
[Round "-"]
[White "uselessduffer"]
[Black "Inglaterra"]
[Result "1-0"]
[WhiteElo "2375"]
[BlackElo "2047"]
[TimeControl "300"]
[EndTime "8:34:13 PDT"]
[Termination "uselessduffer won by resignation"]

1. e4 {[%clk 0:04:56.9]} 1... e5 {[%clk 0:04:59]} 2. Nf3 {[%clk 0:04:55.3]} 2...
Nc6 {[%clk 0:04:58.6]} 3. Bb5 {[%clk 0:04:54.4]} 3... a6 {[%clk 0:04:57.3]} 4.
Ba4 {[%clk 0:04:53.7]} 4... Nf6 {[%clk 0:04:56.8]} 5. O-O {[%clk 0:04:53]} 5...
Be7 {[%clk 0:04:55.1]} 6. Re1 {[%clk 0:04:49.8]} 6... b5 {[%clk 0:04:54.3]} 7.
Bb3 {[%clk 0:04:49.1]} 7... d6 {[%clk 0:04:53.1]} 8. c3 {[%clk 0:04:44]} 8...
O-O {[%clk 0:04:52.5]} 9. d4 {[%clk 0:04:43.6]} 9... Bg4 {[%clk 0:04:50.1]} 10.
Be3 {[%clk 0:04:42.5]} 10... exd4 {[%clk 0:04:41.8]} 11. cxd4 {[%clk 0:04:42.4]}
11... d5 {[%clk 0:04:40.9]} 12. e5 {[%clk 0:04:39.7]} 12... Ne4 {[%clk
0:04:40.2]} 13. h3 {[%clk 0:04:38.2]} 13... Bh5 {[%clk 0:04:37.7]} 14. Nc3
{[%clk 0:04:35.5]} 14... Nxc3 {[%clk 0:04:26.6]} 15. bxc3 {[%clk 0:04:35.4]}
15... Na5 {[%clk 0:04:21.7]} 16. Bc2 {[%clk 0:04:32.7]} 16... Nc4 {[%clk
0:04:20]} 17. Bc1 {[%clk 0:04:25.8]} 17... Qd7 {[%clk 0:04:03.2]} 18. g4 {[%clk
0:04:07.7]} 18... Bg6 {[%clk 0:04:01.6]} 19. Kg2 {[%clk 0:04:06.4]} 19... f6
{[%clk 0:03:36.6]} 20. e6 {[%clk 0:03:58]} 20... Qc6 {[%clk 0:03:29.7]} 21. Nh4
{[%clk 0:03:50.9]} 21... Bxc2 {[%clk 0:03:23.5]} 22. Qxc2 {[%clk 0:03:50.8]}
22... Rae8 {[%clk 0:03:18.1]} 23. f3 {[%clk 0:03:25.5]} 23... Bd8 {[%clk
0:02:58.5]} 24. Qe2 {[%clk 0:03:24.5]} 24... g6 {[%clk 0:02:44.5]} 25. Bh6
{[%clk 0:03:12.9]} 25... f5 {[%clk 0:02:41.3]} 26. Bxf8 {[%clk 0:03:11.1]} 26...
Bxh4 {[%clk 0:02:28.9]} 27. Bc5 {[%clk 0:03:07.1]} 27... Bxe1 {[%clk 0:02:26.6]}
28. Rxe1 {[%clk 0:03:05.1]} 28... Nd6 {[%clk 0:02:16.2]} 29. Qe5 {[%clk
0:02:57.7]} 29... Nb7 {[%clk 0:01:55]} 30. Qf6 {[%clk 0:02:40.5]} 30... Nxc5
{[%clk 0:01:48.6]} 31. Qf7+ {[%clk 0:02:39.2]} 31... Kh8 {[%clk 0:01:47.2]} 32.
dxc5 {[%clk 0:02:35.5]} 32... fxg4 {[%clk 0:01:34.6]} 33. hxg4 {[%clk
0:02:31.3]} 33... a5 {[%clk 0:01:18.7]} 34. e7 {[%clk 0:02:16.9]} 1-0

[Event "Live Chess"]
[Site "Chess.com"]
[Date "2024.06.02"]
[Round "-"]
[White "Queensandpawns"]
[Black "ProfPoisson"]
[Result "1-0"]
[WhiteElo "2245"]
[BlackElo "1352"]
[TimeControl "300"]
[EndTime "8:34:21 PDT"]
[Termination "Queensandpawns won on time"]

1. e4 {[%clk 0:04:59.6]} 1... e5 {[%clk 0:04:56.5]} 2. d4 {[%clk 0:04:58.3]}
2... exd4 {[%clk 0:04:54.7]} 3. c3 {[%clk 0:04:58.2]} 3... dxc3 {[%clk
0:04:52.8]} 4. Bc4 {[%clk 0:04:57.8]} 4... cxb2 {[%clk 0:04:48.6]} 5. Bxb2
{[%clk 0:04:56.4]} 5... d5 {[%clk 0:04:47.6]} 6. Bxd5 {[%clk 0:04:55]} 6... Nf6
{[%clk 0:04:47]} 7. Bxf7+ {[%clk 0:04:53.4]} 7... Kxf7 {[%clk 0:04:45.1]} 8.
Qxd8 {[%clk 0:04:51.5]} 8... Bb4+ {[%clk 0:04:44.6]} 9. Qd2 {[%clk 0:04:51.4]}
9... Bxd2+ {[%clk 0:04:42]} 10. Nxd2 {[%clk 0:04:51.3]} 10... Nc6 {[%clk
0:04:39.5]} 11. e5 {[%clk 0:04:50.6]} 11... Nd5 {[%clk 0:04:26.4]} 12. Ngf3
{[%clk 0:04:50.5]} 12... Ncb4 {[%clk 0:04:18.7]} 13. O-O {[%clk 0:04:20.5]}
13... Re8 {[%clk 0:04:13.5]} 14. a3 {[%clk 0:04:17.6]} 14... Nd3 {[%clk
0:04:06.9]} 15. Rab1 {[%clk 0:04:00.6]} 15... Nxb2 {[%clk 0:04:01.2]} 16. Rxb2
{[%clk 0:04:00.5]} 16... Kg8 {[%clk 0:03:56.6]} 17. Ne4 {[%clk 0:03:51.3]} 17...
c6 {[%clk 0:03:50.4]} 18. Nd6 {[%clk 0:03:48.8]} 18... Rf8 {[%clk 0:03:42]} 19.
Nxc8 {[%clk 0:03:38.8]} 19... Raxc8 {[%clk 0:03:38.8]} 20. Rxb7 {[%clk
0:03:38.7]} 20... Ra8 {[%clk 0:03:25.3]} 21. Rc1 {[%clk 0:03:33.3]} 21... Rfb8
{[%clk 0:03:16.4]} 22. Rxb8+ {[%clk 0:03:29.7]} 22... Rxb8 {[%clk 0:03:15]} 23.
h3 {[%clk 0:03:29.6]} 23... Rb3 {[%clk 0:03:04]} 24. Rxc6 {[%clk 0:03:26.7]}
24... Rxa3 {[%clk 0:03:02.4]} 25. e6 {[%clk 0:03:26.6]} 25... Ne7 {[%clk
0:02:50]} 26. Rc7 {[%clk 0:03:24.4]} 26... Kf8 {[%clk 0:02:46.8]} 27. Rb7 {[%clk
0:03:09.5]} 27... g6 {[%clk 0:02:36.5]} 28. Nd4 {[%clk 0:03:04.7]} 28... Ra4
{[%clk 0:02:25.6]} 29. Nb5 {[%clk 0:03:00.2]} 29... Re4 {[%clk 0:02:19.1]} 30.
Nc7 {[%clk 0:02:50.5]} 30... a5 {[%clk 0:02:07.8]} 31. Rb8+ {[%clk 0:02:47.3]}
31... Kg7 {[%clk 0:02:05.1]} 32. Rb7 {[%clk 0:02:36.6]} 32... Kf6 {[%clk
0:02:00.7]} 33. f3 {[%clk 0:02:25.8]} 33... Re1+ {[%clk 0:01:46.3]} 34. Kf2
{[%clk 0:02:24.6]} 34... Ra1 {[%clk 0:01:42.7]} 35. g4 {[%clk 0:02:20.5]} 35...
a4 {[%clk 0:01:36.6]} 36. g5+ {[%clk 0:02:19.2]} 36... Kf5 {[%clk 0:01:33.9]}
37. Rb5+ {[%clk 0:02:02.3]} 37... Kf4 {[%clk 0:01:26.6]} 38. Rb4+ {[%clk
0:01:51]} 38... Ke5 {[%clk 0:01:21.8]} 39. Ke3 {[%clk 0:01:42.7]} 39... Kd6
{[%clk 0:01:12.8]} 40. Rb7 {[%clk 0:01:40]} 40... a3 {[%clk 0:00:58.3]} 41. Nb5+
{[%clk 0:01:24.2]} 41... Kxe6 {[%clk 0:00:54.5]} 42. Nd4+ {[%clk 0:01:23.1]}
42... Kd6 {[%clk 0:00:48.3]} 43. Ra7 {[%clk 0:01:21.6]} 43... a2 {[%clk
0:00:37.5]} 44. Nc2 {[%clk 0:01:20.3]} 44... Nd5+ {[%clk 0:00:27.9]} 45. Kd2
{[%clk 0:01:18.4]} 45... Rf1 {[%clk 0:00:19.2]} 46. Rxa2 {[%clk 0:01:16.7]}
46... Rxf3 {[%clk 0:00:17.9]} 47. Ra6+ {[%clk 0:01:12.2]} 47... Ke5 {[%clk
0:00:15.1]} 48. Ne1 {[%clk 0:01:10.9]} 48... Rxh3 {[%clk 0:00:13.5]} 49. Nd3+
{[%clk 0:01:10.5]} 49... Kf5 {[%clk 0:00:09.7]} 50. Ra5 {[%clk 0:01:09.5]} 50...
Kxg5 {[%clk 0:00:08]} 51. Rxd5+ {[%clk 0:01:08.2]} 51... Kg4 {[%clk 0:00:06.9]}
52. Rd7 {[%clk 0:01:08.1]} 52... Rh2+ {[%clk 0:00:04.8]} 53. Ke3 {[%clk
0:01:07.3]} 53... Rh3+ {[%clk 0:00:02.7]} 54. Ke4 {[%clk 0:01:06.2]} 1-0

[Event "Live Chess"]
[Site "Chess.com"]
[Date "2024.06.02"]
[Round "-"]
[White "nitrofish07"]
[Black "FREDERICKtheMATE"]
[Result "0-1"]
[WhiteElo "2098"]
[BlackElo "2663"]
[TimeControl "300"]
[EndTime "8:34:25 PDT"]
[Termination "FREDERICKtheMATE won by resignation"]

1. d4 {[%clk 0:04:57.8]} 1... d5 {[%clk 0:04:58.7]} 2. c4 {[%clk 0:04:57.2]}
2... c6 {[%clk 0:04:58.1]} 3. Nf3 {[%clk 0:04:55.7]} 3... Nf6 {[%clk 0:04:57.1]}
4. g3 {[%clk 0:04:55.3]} 4... e6 {[%clk 0:04:54.8]} 5. Bg2 {[%clk 0:04:54.6]}
5... dxc4 {[%clk 0:04:54]} 6. O-O {[%clk 0:04:52.3]} 6... b5 {[%clk 0:04:51.9]}
7. Ne5 {[%clk 0:04:50.7]} 7... Bb7 {[%clk 0:04:49.9]} 8. a4 {[%clk 0:04:49.8]}
8... a6 {[%clk 0:04:48.7]} 9. b3 {[%clk 0:04:46.6]} 9... cxb3 {[%clk 0:04:47.1]}
10. Qxb3 {[%clk 0:04:44.4]} 10... Qxd4 {[%clk 0:04:40.3]} 11. Bb2 {[%clk
0:04:42.2]} 11... Qb6 {[%clk 0:04:38.9]} 12. Nc3 {[%clk 0:04:07.6]} 12... Be7
{[%clk 0:04:24.7]} 13. Nc4 {[%clk 0:04:03.2]} 13... Qc7 {[%clk 0:03:33.2]} 14.
axb5 {[%clk 0:04:01.8]} 14... axb5 {[%clk 0:03:31.5]} 15. Rxa8 {[%clk
0:03:51.8]} 15... Bxa8 {[%clk 0:03:30.2]} 16. Nxb5 {[%clk 0:03:50.6]} 16... cxb5
{[%clk 0:03:22.2]} 17. Qxb5+ {[%clk 0:03:50.5]} 17... Nc6 {[%clk 0:03:17.4]} 18.
Ne5 {[%clk 0:03:41.9]} 18... O-O {[%clk 0:03:01.8]} 19. Nxc6 {[%clk 0:03:38.3]}
19... Bd6 {[%clk 0:02:57.7]} 20. Bxf6 {[%clk 0:03:24.4]} 20... gxf6 {[%clk
0:02:54.8]} 21. Nd4 {[%clk 0:03:24]} 21... Rb8 {[%clk 0:02:50]} 22. Qd3 {[%clk
0:03:21.3]} 22... Bxg2 {[%clk 0:02:45.5]} 23. Kxg2 {[%clk 0:03:21.2]} 23... Be5
{[%clk 0:02:39.4]} 24. Nf3 {[%clk 0:03:17.7]} 24... Rd8 {[%clk 0:02:37.6]} 25.
Qe4 {[%clk 0:03:10.9]} 25... Bd6 {[%clk 0:02:26.4]} 26. Rb1 {[%clk 0:03:09.3]}
26... Rb8 {[%clk 0:02:17.3]} 27. Rxb8+ {[%clk 0:03:07.2]} 27... Qxb8 {[%clk
0:02:17.2]} 28. e3 {[%clk 0:03:03.8]} 28... f5 {[%clk 0:02:15.4]} 29. Qd4 {[%clk
0:03:00.4]} 29... h6 {[%clk 0:02:06.5]} 30. h4 {[%clk 0:02:58.8]} 30... Bf8
{[%clk 0:02:05]} 31. Qe5 {[%clk 0:02:55.1]} 31... Qd8 {[%clk 0:02:01.6]} 32. Qd4
{[%clk 0:02:53.7]} 32... Qe7 {[%clk 0:01:59.5]} 33. Qf4 {[%clk 0:02:44.7]} 33...
Bg7 {[%clk 0:01:58.2]} 34. Qb8+ {[%clk 0:02:43]} 34... Kh7 {[%clk 0:01:57.4]}
35. Qb1 {[%clk 0:02:41.3]} 35... Qc7 {[%clk 0:01:50]} 36. Qd3 {[%clk 0:02:38.7]}
36... Qc6 {[%clk 0:01:48.6]} 37. g4 {[%clk 0:02:28.5]} 37... Bf6 {[%clk
0:01:31.3]} 38. gxf5 {[%clk 0:02:26.1]} 38... e5 {[%clk 0:01:30]} 39. e4 {[%clk
0:02:23.6]} 39... Qe8 {[%clk 0:01:25.1]} 40. Qd5 {[%clk 0:02:18.7]} 40... Qg8+
{[%clk 0:01:23.3]} 41. Kf1 {[%clk 0:02:14.6]} 41... Qg7 {[%clk 0:01:19.7]} 42.
Ke2 {[%clk 0:02:10.3]} 42... Kg8 {[%clk 0:01:16.9]} 43. Qa8+ {[%clk 0:02:08.6]}
43... Kh7 {[%clk 0:01:16.2]} 44. Qd5 {[%clk 0:02:07.6]} 44... Kh8 {[%clk
0:01:07.9]} 45. Qa8+ {[%clk 0:02:03.5]} 45... Kh7 {[%clk 0:01:07.1]} 46. Qa1
{[%clk 0:02:00.2]} 46... Qg4 {[%clk 0:01:03.2]} 47. Qa7 {[%clk 0:01:54.4]} 47...
Qxe4+ {[%clk 0:00:59.7]} 48. Qe3 {[%clk 0:01:51.2]} 48... Qxf5 {[%clk
0:00:57.9]} 49. Qb3 {[%clk 0:01:00.6]} 49... Kg7 {[%clk 0:00:55.4]} 50. Qe3
{[%clk 0:00:58.9]} 50... Qg4 {[%clk 0:00:52.3]} 51. Kf1 {[%clk 0:00:53.8]} 51...
Qf5 {[%clk 0:00:46.5]} 52. Ke2 {[%clk 0:00:52.4]} 52... h5 {[%clk 0:00:43.1]}
53. Ke1 {[%clk 0:00:45]} 53... Kg6 {[%clk 0:00:40.2]} 54. Ke2 {[%clk 0:00:43.3]}
54... Bg7 {[%clk 0:00:36.6]} 55. Qb6+ {[%clk 0:00:28.2]} 55... f6 {[%clk
0:00:34.7]} 56. Qe3 {[%clk 0:00:28.1]} 56... Qg4 {[%clk 0:00:32.2]} 57. Ke1
{[%clk 0:00:22.4]} 57... Bh6 {[%clk 0:00:30.2]} 58. Qe2 {[%clk 0:00:19.4]} 58...
e4 {[%clk 0:00:27.3]} 59. Nd2 {[%clk 0:00:17.3]} 59... Qxe2+ {[%clk 0:00:24.8]}
60. Kxe2 {[%clk 0:00:16.8]} 60... Bxd2 {[%clk 0:00:24.5]} 61. Kxd2 {[%clk
0:00:16.7]} 61... Kf5 {[%clk 0:00:23.8]} 62. Ke3 {[%clk 0:00:16.2]} 62... Ke5
{[%clk 0:00:23]} 63. f4+ {[%clk 0:00:14.3]} 63... exf3 {[%clk 0:00:22.9]} 64.
Kxf3 {[%clk 0:00:13.9]} 64... Kf5 {[%clk 0:00:22.5]} 65. Kg3 {[%clk 0:00:13.4]}
65... Ke4 {[%clk 0:00:21.8]} 66. Kf2 {[%clk 0:00:12.9]} 66... Kf4 {[%clk
0:00:21.7]} 67. Kg2 {[%clk 0:00:12.6]} 67... Kg4 {[%clk 0:00:21.6]} 68. Kh2
{[%clk 0:00:12.2]} 68... Kxh4 {[%clk 0:00:21.5]} 0-1

[Event "Live Chess"]
[Site "Chess.com"]
[Date "2024.06.02"]
[Round "-"]
[White "KyryloPoluliakh"]
[Black "goldinspiredphoenix"]
[Result "1-0"]
[WhiteElo "1527"]
[BlackElo "1460"]
[TimeControl "300"]
[EndTime "8:34:47 PDT"]
[Termination "KyryloPoluliakh won by checkmate"]

1. c4 {[%clk 0:04:58.6]} 1... e5 {[%clk 0:04:58.7]} 2. Nc3 {[%clk 0:04:56.5]}
2... Nf6 {[%clk 0:04:57.7]} 3. g3 {[%clk 0:04:55.6]} 3... Bc5 {[%clk 0:04:54.7]}
4. Bg2 {[%clk 0:04:50.5]} 4... Nc6 {[%clk 0:04:52.1]} 5. e3 {[%clk 0:04:46.7]}
5... d6 {[%clk 0:04:49.8]} 6. Nge2 {[%clk 0:04:42.3]} 6... Ne7 {[%clk 0:04:48]}
7. d4 {[%clk 0:04:38.6]} 7... exd4 {[%clk 0:04:46.1]} 8. exd4 {[%clk 0:04:35.5]}
8... Bb4 {[%clk 0:04:42.9]} 9. O-O {[%clk 0:04:30.4]} 9... O-O {[%clk
0:04:40.5]} 10. a3 {[%clk 0:04:25.4]} 10... Bxc3 {[%clk 0:04:39.1]} 11. Nxc3
{[%clk 0:04:20.8]} 11... c6 {[%clk 0:04:38.4]} 12. b4 {[%clk 0:04:13.8]} 12...
Ng6 {[%clk 0:04:36.4]} 13. Ne4 {[%clk 0:04:05.8]} 13... d5 {[%clk 0:04:33.4]}
14. Nxf6+ {[%clk 0:04:01.2]} 14... gxf6 {[%clk 0:04:31.9]} 15. cxd5 {[%clk
0:03:59.1]} 15... cxd5 {[%clk 0:04:30.5]} 16. Qb3 {[%clk 0:03:48.5]} 16... Be6
{[%clk 0:04:27.4]} 17. Bh6 {[%clk 0:03:43.8]} 17... Re8 {[%clk 0:04:20.9]} 18.
Rfe1 {[%clk 0:03:40.4]} 18... Qb6 {[%clk 0:04:15.7]} 19. Be3 {[%clk 0:03:37.2]}
19... Rac8 {[%clk 0:04:11.5]} 20. Bxd5 {[%clk 0:03:34.6]} 20... Qd6 {[%clk
0:04:04.9]} 21. Bxe6 {[%clk 0:03:33]} 21... fxe6 {[%clk 0:04:00.4]} 22. Rac1
{[%clk 0:03:29.7]} 22... Rxc1 {[%clk 0:03:54.6]} 23. Rxc1 {[%clk 0:03:27.8]}
23... Kf7 {[%clk 0:03:52.8]} 24. Qc3 {[%clk 0:03:18.4]} 24... b6 {[%clk
0:03:40.8]} 25. Qc7+ {[%clk 0:03:14.9]} 25... Re7 {[%clk 0:03:39.9]} 26. Qxd6
{[%clk 0:03:12.4]} 26... Rb7 {[%clk 0:03:26.5]} 27. Rc7+ {[%clk 0:03:09.2]}
27... Rxc7 {[%clk 0:03:25.5]} 28. Qxc7+ {[%clk 0:03:06.8]} 28... Ne7 {[%clk
0:03:24.9]} 29. d5 {[%clk 0:03:01.2]} 29... exd5 {[%clk 0:03:23.3]} 30. Bf4
{[%clk 0:02:52.1]} 30... Ke6 {[%clk 0:03:19.6]} 31. Qd6+ {[%clk 0:02:44.5]}
31... Kf7 {[%clk 0:03:18.4]} 32. Qd7 {[%clk 0:02:41.2]} 32... Kf8 {[%clk
0:03:14.9]} 33. Bd6 {[%clk 0:02:38.4]} 33... Kg8 {[%clk 0:03:13.8]} 34. Qxe7
{[%clk 0:02:37.9]} 34... d4 {[%clk 0:03:12.7]} 35. Qf8# {[%clk 0:02:36.4]} 1-0